bitfinex-derivatives/quotes_BTCF0:USTF0_20241117
["timestamp","ask_amount","ask_price","bid_price","bid_amount"]
[1731846483040,0.05509746,90948.0,90946.0,0.26164858]
[1731846483242,0.05509746,90948.0,90939.0,0.32778203]
[1731846483243,0.05509746,90948.0,90945.0,0.26501324]
[1731846483453,0.05509746,90948.0,90939.0,0.32778203]
[1731846483454,0.05509746,90948.0,90944.0,0.26501324]
[1731846483750,0.054975,90945.0,90944.0,0.26501324]
[1731846483949,0.054975,90945.0,90944.0,0.00336466]
[1731846484141,0.054976,90944.0,90943.0,0.26501324]
[1731846484337,0.054976,90944.0,90943.0,0.00336605]
[1731846484538,0.00012446,90948.0,90938.0,0.32778203]
[1731846484539,0.05509946,90948.0,90947.0,0.054974]
[1731846485635,0.054975,90945.0,90944.0,0.26224454]
[1731846486141,0.054976,90944.0,90943.0,0.26224454]
[1731846486342,0.054977,90942.0,90941.0,0.00336605]
[1731846487052,0.054978,90940.0,90939.0,0.054978]
[1731846487952,0.0307,90941.0,90936.0,0.331148]
[1731846488139,0.05498,90937.0,90936.0,0.00336597]
[1731846488335,0.032,90940.0,90935.0,0.386129]
[1731846488645,0.05498,90936.0,90935.0,0.386129]
[1731846488840,0.05498,90936.0,90935.0,0.05834697]
[1731846490145,0.05498,90936.0,90935.0,0.054981]
[1731846491243,0.05498,90936.0,90935.0,0.06237937]
[1731846491946,0.032,90940.0,90935.0,0.20409258]
[1731846492149,0.032,90940.0,90936.0,0.0074008]
[1731846492352,0.032,90940.0,90926.0,0.054986]
[1731846492353,0.16454171,90939.0,90926.0,0.19669178]
[1731846492658,0.054987,90925.0,90924.0,0.054988]
[1731846492851,0.054987,90925.0,90924.0,0.06239028]
[1731846493149,0.054987,90925.0,90924.0,0.06832363]
[1731846494154,0.085885,90929.0,90928.0,0.054985]
[1731846494356,0.085885,90929.0,90928.0,0.06832063]
[1731846495049,0.085885,90929.0,90928.0,0.07540673]
[1731846495252,0.0309,90929.0,90928.0,0.07204134]
[1731846495755,0.0309,90929.0,90928.0,0.07540485]
[1731846495756,0.085885,90929.0,90928.0,0.07540485]
[1731846495956,0.085885,90929.0,90928.0,0.07204134]
[1731846496349,0.13175174,90939.0,90928.0,0.07204134]
[1731846496350,0.16375174,90940.0,90928.0,0.02041947]
[1731846496663,0.054981,90935.0,90933.0,0.054982]
[1731846496958,0.054981,90935.0,90934.0,0.01705634]
[1731846497550,0.054981,90935.0,90934.0,0.00593335]
[1731846497753,0.12023488,90940.0,90934.0,0.01707755]
[1731846497754,0.064,90940.0,90934.0,0.01707755]
[1731846497947,0.064,90940.0,90931.0,0.00336204]
[1731846497948,0.03214,90941.0,90935.0,0.37787755]
[1731846498149,0.054979,90938.0,90937.0,0.00336204]
[1731846498357,0.054979,90938.0,90937.0,1.71351034]
[1731846498554,0.054979,90938.0,90937.0,1.51707755]
[1731846498755,0.054979,90938.0,90937.0,0.01707755]
[1731846499458,0.054979,90938.0,90937.0,0.21351457]
[1731846500156,0.054979,90938.0,90937.0,0.01707755]
[1731846500650,0.054979,90938.0,90933.0,0.26225477]
[1731846500651,0.054982,90934.0,90933.0,0.26225477]
[1731846500852,0.054982,90933.0,90932.0,0.31723777]
[1731846501165,0.054982,90933.0,90932.0,0.33426695]
[1731846501763,0.054982,90933.0,90932.0,0.07201218]
[1731846502156,0.054982,90933.0,90932.0,0.33394699]
[1731846502454,0.054982,90933.0,90932.0,0.07201218]
[1731846502853,0.054982,90933.0,90932.0,0.333963]
[1731846503256,0.054982,90933.0,90932.0,0.07201218]
[1731846503558,0.054982,90933.0,90932.0,0.27898]
[1731846504065,0.054982,90933.0,90932.0,0.01698098]
[1731846504461,0.054982,90933.0,90932.0,0.2789318]
[1731846504858,0.054982,90933.0,90932.0,0.01687331]
[1731846507353,0.415782,90933.0,90932.0,0.01687331]
[1731846507657,0.3608,90933.0,90932.0,0.01693109]
[1731846507859,0.415782,90933.0,90932.0,0.01693109]
[1731846508258,0.415782,90933.0,90932.0,0.21361423]
[1731846508455,0.415782,90933.0,90932.0,0.01693109]
[1731846508655,0.415782,90933.0,90932.0,0.00956798]
[1731846508855,0.415782,90933.0,90932.0,0.0169281]
[1731846510172,0.415782,90933.0,90932.0,0.00956798]
[1731846516073,0.415782,90933.0,90932.0,0.0036793]
[1731846516262,0.415782,90933.0,90925.0,0.054987]
[1731846516263,0.054987,90926.0,90925.0,0.054987]
[1731846516463,0.054987,90926.0,90925.0,0.2686774]
[1731846516766,0.054987,90926.0,90925.0,0.01700726]
[1731846516960,0.054987,90926.0,90925.0,0.0203758]
[1731846517362,0.054987,90926.0,90925.0,0.02036161]
[1731846517559,0.054987,90926.0,90925.0,0.21704475]
[1731846517768,0.054987,90926.0,90925.0,0.21367567]
[1731846519279,0.502587,90926.0,90909.0,0.00337163]
[1731846519492,0.054999,90906.0,90901.0,0.26195082]
[1731846519673,0.054999,90906.0,90900.0,0.1]
[1731846519674,0.141799,90906.0,90900.0,0.1]
[1731846519877,0.27366726,90906.0,90900.0,0.1]
[1731846520194,0.141799,90906.0,90900.0,0.1]
[1731846525374,0.19746757,90906.0,90900.0,0.1]
[1731846526689,0.11066757,90906.0,90900.0,0.1]
[1731846526987,0.19738757,90906.0,90900.0,0.1]
[1731846529291,0.19738757,90906.0,90905.0,0.00590826]
[1731846531282,0.19738757,90906.0,90905.0,0.0095447]
[1731846532181,0.19738757,90906.0,90905.0,0.0037242]
[1731846534292,0.19738757,90906.0,90905.0,0.00956112]
[1731846534995,0.11066757,90906.0,90905.0,0.00956112]
[1731846535198,0.054999,90906.0,90905.0,0.06456012]
[1731846535689,0.054999,90906.0,90905.0,1.56456012]
[1731846536082,0.054996,90911.0,90905.0,1.50956112]
[1731846536281,0.3608,90918.0,90906.0,0.10637336]
[1731846536493,0.054993,90915.0,90914.0,0.054993]
[1731846536892,0.054993,90915.0,90914.0,0.06446108]
[1731846537594,0.054993,90915.0,90914.0,0.054993]
[1731846537896,0.054993,90915.0,90914.0,0.0644831]
[1731846538095,0.054993,90915.0,90914.0,0.0094901]
[1731846538794,0.05453575,90918.0,90916.0,0.054992]
[1731846538999,0.08672,90923.0,90922.0,0.054988]
[1731846539199,0.141708,90923.0,90922.0,0.0644781]
[1731846539403,0.05605687,90928.0,90922.0,0.0094901]
[1731846539590,0.05605687,90928.0,90927.0,0.054986]
[1731846539591,0.10964186,90928.0,90927.0,0.054986]
[1731846539791,0.10964186,90928.0,90927.0,0.0644761]
[1731846540687,0.47044186,90928.0,90927.0,0.0094901]
[1731846541307,0.47044186,90928.0,90927.0,0.00364935]
[1731846542189,0.47044186,90928.0,90927.0,0.0094617]
[1731846542591,0.47044186,90928.0,90909.0,0.26195082]
[1731846542592,0.74537686,90928.0,90909.0,0.26195082]
[1731846542907,0.054993,90916.0,90915.0,0.054993]
[1731846543090,0.054993,90916.0,90915.0,0.060807]
[1731846543294,0.054993,90916.0,90915.0,0.06078162]
[1731846544410,0.21855856,90927.0,90920.0,0.05499]
[1731846544411,0.054989,90922.0,90920.0,0.05499]
[1731846544698,0.054989,90922.0,90915.0,0.00578862]
[1731846544699,0.054989,90922.0,90921.0,0.06077862]
[1731846545104,0.054986,90927.0,90926.0,0.054986]
[1731846545305,0.054986,90927.0,90926.0,0.06077462]
[1731846548206,0.054986,90927.0,90926.0,0.054986]
[1731846548502,0.08672,90933.0,90923.0,0.0302]
[1731846548710,0.054984,90931.0,90930.0,0.054984]
[1731846549006,0.054984,90931.0,90930.0,0.06078872]
[1731846549206,0.054984,90931.0,90930.0,0.06078841]
[1731846549902,0.054984,90931.0,90930.0,0.06082883]
[1731846550209,0.13183856,90935.0,90930.0,0.06082883]
[1731846550210,0.08672,90938.0,90930.0,0.36664483]
[1731846550398,0.08672,90938.0,90936.0,0.05498]
[1731846550596,0.10904043,90939.0,90936.0,0.06082483]
[1731846550795,0.10904043,90939.0,90936.0,0.05498]
[1731846551204,0.05406143,90939.0,90936.0,0.05498]
[1731846551411,0.05498,90938.0,90936.0,0.05498]
[1731846553804,0.05498,90938.0,90937.0,0.05498]
[1731846554416,0.05498,90938.0,90937.0,0.06073113]
[1731846554602,0.05498,90938.0,90937.0,0.06432415]
[1731846555111,0.05498,90938.0,90937.0,0.00934415]
[1731846560012,0.05498,90938.0,90937.0,0.00359302]
[1731846560215,0.054979,90938.0,90937.0,0.0093995]
[1731846562314,0.054979,90938.0,90937.0,0.00361451]
[1731846564323,0.05406143,90939.0,90927.0,0.054986]
[1731846564632,0.054985,90929.0,90928.0,0.00938144]
[1731846565122,0.3608,90932.0,90922.0,0.054989]
[1731846565319,0.3608,90932.0,90923.0,0.00938385]
[1731846565320,0.13183856,90930.0,90923.0,0.00938385]
[1731846565520,0.13183856,90929.0,90924.0,0.00938385]
[1731846565717,0.054987,90926.0,90925.0,0.00360849]
[1731846566020,0.054987,90926.0,90925.0,0.00938385]
[1731846567522,0.054987,90926.0,90919.0,0.05499]
[1731846567523,0.05499,90921.0,90919.0,0.05499]
[1731846567913,0.05499,90921.0,90920.0,0.00574855]
[1731846568126,0.05499,90921.0,90920.0,0.00934028]
[1731846570814,0.05499,90921.0,90919.0,0.05499]
[1731846571016,0.05499,90921.0,90920.0,0.00359861]
[1731846571221,0.05499,90921.0,90920.0,0.00935816]
[1731846571420,0.05499,90921.0,90920.0,0.06434816]
[1731846572124,0.05499,90921.0,90920.0,0.06770897]
[1731846573116,0.05499,90921.0,90920.0,0.06434816]
[1731846573316,0.05499,90921.0,90920.0,0.39213019]
[1731846573726,0.05499,90921.0,90920.0,0.06434816]
[1731846574112,0.05499,90921.0,90920.0,0.76189827]
[1731846574526,0.05499,90921.0,90920.0,0.76191901]
[1731846575420,0.05499,90921.0,90920.0,0.06773113]
[1731846576427,0.05499,90921.0,90920.0,0.06772706]
[1731846576613,0.05499,90921.0,90920.0,0.39550909]
[1731846577019,0.05499,90921.0,90920.0,0.06772706]
[1731846577718,0.05499,90921.0,90920.0,0.06436477]
[1731846577913,0.05499,90921.0,90920.0,0.05499]
[1731846578113,0.05499,90921.0,90920.0,0.06435821]
[1731846578330,0.05499,90921.0,90920.0,0.05499]
[1731846578623,0.05499,90921.0,90920.0,0.0643581]
[1731846579016,0.05499,90921.0,90920.0,0.0093681]
[1731846582429,0.05499,90921.0,90920.0,0.00360243]
[1731846582430,0.38495,90921.0,90920.0,0.00360243]
[1731846582615,0.054997,90908.0,90906.0,0.26251605]
[1731846582819,0.054997,90908.0,90905.0,8.776e-05]
[1731846582820,0.502397,90908.0,90907.0,0.00575518]
[1731846586823,0.55682444,90908.0,90907.0,0.00575518]
[1731846587920,0.47022444,90908.0,90907.0,0.00575518]
[1731846588125,0.415797,90908.0,90907.0,0.06075318]
[1731846588831,0.415797,90908.0,90907.0,0.054998]
[1731846589043,0.415797,90908.0,90907.0,0.06075345]
[1731846591934,0.415797,90908.0,90907.0,0.054998]
[1731846592136,0.415797,90908.0,90907.0,0.0607165]
[1731846592831,0.415797,90908.0,90907.0,0.0057185]
[1731846593534,0.415797,90908.0,90906.0,0.118298]
[1731846593535,0.054998,90907.0,90906.0,0.118298]
[1731846593728,0.054998,90907.0,90906.0,1.618298]
[1731846593920,0.054998,90907.0,90906.0,1.62396448]
[1731846594537,0.054998,90907.0,90906.0,1.62750504]
[1731846596528,0.054998,90907.0,90906.0,0.00920704]
[1731846599044,0.054998,90907.0,90906.0,0.00920224]
[1731846599238,0.031,90913.0,90905.0,8.776e-05]
[1731846599446,0.054998,90907.0,90906.0,0.00920267]
[1731846601640,0.031,90913.0,90905.0,8.776e-05]
[1731846601833,0.054998,90907.0,90906.0,0.00919615]
[1731846605345,0.18681886,90907.0,90906.0,0.00919615]
[1731846606147,0.054998,90907.0,90906.0,0.00919615]
[1731846606539,0.054998,90907.0,90906.0,0.06419515]
[1731846607850,0.054998,90907.0,90906.0,0.00919615]
[1731846608544,0.0306,90910.0,90905.0,8.776e-05]
[1731846608545,0.054999,90906.0,90905.0,8.776e-05]
[1731846608749,0.054999,90906.0,90905.0,0.00362531]
[1731846609242,0.58063432,90906.0,90905.0,0.00927582]
[1731846609437,0.46930754,90906.0,90905.0,0.00927582]
[1731846610445,0.54777523,90906.0,90905.0,0.00927582]
[1731846610949,0.415799,90906.0,90905.0,0.00927582]
[1731846611249,0.54777523,90906.0,90905.0,0.00927582]
[1731846611639,0.54777523,90906.0,90905.0,0.00361558]
[1731846611842,0.415799,90906.0,90905.0,0.00926185]
[1731846618045,0.46943544,90906.0,90905.0,0.00926185]
[1731846618241,0.46943544,90906.0,90905.0,8.776e-05]
[1731846618446,0.58765081,90906.0,90905.0,9.8e-07]
[1731846618641,0.58765081,90906.0,90900.0,0.1]
[1731846618642,0.055002,90901.0,90900.0,0.1]
[1731846618947,0.055002,90901.0,90900.0,0.10562195]
[1731846618948,0.19491305,90901.0,90900.0,0.10562195]
[1731846619359,0.19491305,90901.0,90900.0,0.1]
[1731846620451,0.33922868,90901.0,90900.0,0.1]
[1731846620756,0.19491305,90901.0,90900.0,0.1]
[1731846621147,0.33919466,90901.0,90900.0,0.1]
[1731846621348,0.19491305,90901.0,90900.0,0.1]
[1731846621947,0.25025663,90901.0,90900.0,0.1]
[1731846622353,0.39453824,90901.0,90900.0,0.1]
[1731846622552,0.25025663,90901.0,90900.0,0.1]
[1731846622764,0.44804929,90901.0,90900.0,0.1]
[1731846623060,0.44799868,90901.0,90900.0,0.1]
[1731846623257,0.25025663,90901.0,90900.0,0.1]
[1731846623559,0.39449,90901.0,90900.0,0.1]
[1731846623856,0.44800105,90901.0,90900.0,0.1]
[1731846624058,0.25025663,90901.0,90900.0,0.1]
[1731846625554,0.19674558,90901.0,90900.0,0.1]
[1731846625756,0.32855686,90901.0,90900.0,0.1]
[1731846626559,0.24215686,90901.0,90900.0,0.1]
[1731846626869,0.19674558,90901.0,90900.0,0.1]
[1731846627866,0.11034558,90901.0,90900.0,0.1]
[1731846628176,0.055002,90901.0,90900.0,0.16069781]
[1731846628364,0.055002,90901.0,90900.0,0.42321386]
[1731846628664,0.055002,90901.0,90900.0,0.16069781]
[1731846629869,0.3608,90904.0,90903.0,0.055]
[1731846630070,0.3608,90904.0,90903.0,0.32319052]
[1731846630263,0.41740439,90906.0,90903.0,0.06069581]
[1731846630264,0.00160539,90906.0,90903.0,0.06069581]
[1731846630466,0.00012539,90906.0,90905.0,0.054999]
[1731846630669,0.00012539,90906.0,90905.0,0.06428294]
[1731846630867,0.00012539,90906.0,90905.0,1.56428294]
[1731846631558,0.00012539,90906.0,90905.0,2.61180216]
[1731846631759,0.00012539,90906.0,90905.0,2.29337669]
[1731846633273,0.00012539,90906.0,90905.0,2.62121252]
[1731846633468,0.00012539,90906.0,90905.0,1.92515556]
[1731846634659,0.00012539,90906.0,90905.0,1.554999]
[1731846634862,0.00012539,90906.0,90905.0,1.56763751]
[1731846636073,0.00012539,90906.0,90905.0,1.5643012]
[1731846636377,0.00012539,90906.0,90905.0,1.56763688]
[1731846636770,0.00012539,90906.0,90905.0,1.554999]
[1731846636969,0.00012539,90906.0,90905.0,1.56433478]
[1731846638060,0.00012539,90906.0,90905.0,1.56425523]
[1731846638480,0.00012539,90906.0,90905.0,1.56425518]
[1731846638969,0.00012539,90906.0,90905.0,1.56425556]
[1731846641578,0.00012539,90906.0,90905.0,1.56423495]
[1731846641875,0.00012539,90906.0,90905.0,1.5734709]
[1731846642971,0.00012539,90906.0,90905.0,1.59548433]
[1731846644873,0.00012539,90906.0,90905.0,1.58624838]
[1731846645079,0.00012539,90906.0,90905.0,1.77002594]
[1731846645372,0.05512439,90906.0,90905.0,1.57347492]
[1731846646676,0.05512439,90906.0,90905.0,1.51847592]
[1731846647066,0.05512439,90906.0,90905.0,0.01847592]
[1731846647671,0.05512439,90906.0,90905.0,0.00923997]
[1731846648674,0.05512439,90906.0,90901.0,0.3608]
[1731846648675,0.055001,90902.0,90901.0,0.3608]
[1731846648877,0.055001,90902.0,90901.0,0.37002247]
[1731846651180,0.055001,90902.0,90901.0,0.56657349]
[1731846651570,0.055001,90902.0,90901.0,0.37002247]
[1731846651882,0.055001,90902.0,90901.0,0.3700301]
[1731846653067,0.055001,90902.0,90901.0,0.56658112]
[1731846653273,0.055001,90902.0,90901.0,0.3700301]
[1731846653675,0.055001,90902.0,90901.0,0.56678976]
[1731846653973,0.055001,90902.0,90901.0,0.3700301]
[1731846654177,0.055001,90902.0,90901.0,0.0092301]
[1731846654374,0.055001,90902.0,90901.0,0.00354936]
[1731846654581,0.116901,90902.0,90901.0,0.00354936]
[1731846654973,0.116901,90902.0,90901.0,0.00354628]
[1731846655166,0.17254914,90902.0,90901.0,0.00354628]
[1731846655376,0.30436042,90902.0,90901.0,0.00354628]
[1731846655573,0.33731818,90902.0,90901.0,0.00924751]
[1731846655776,0.17254914,90902.0,90901.0,0.00924751]
[1731846656177,0.33734743,90902.0,90901.0,0.00924751]
[1731846657172,0.17254914,90902.0,90901.0,0.00924751]
[1731846658475,0.33737872,90902.0,90901.0,0.00924751]
[1731846658776,0.17254914,90902.0,90901.0,0.00936466]
[1731846659167,0.33736262,90902.0,90901.0,0.00936466]
[1731846659573,0.17254914,90902.0,90901.0,0.00936466]
[1731846659873,0.22606054,90902.0,90901.0,0.00936466]
[1731846662680,0.22606085,90902.0,90901.0,0.00936466]
[1731846663477,0.22606134,90902.0,90901.0,0.00936466]
[1731846663679,0.17254914,90902.0,90901.0,0.00936466]
[1731846663888,0.11754814,90902.0,90900.0,0.1]
[1731846664089,0.055002,90901.0,90900.0,0.1]
[1731846664384,0.055002,90901.0,90900.0,0.10574792]
[1731846664581,0.055002,90901.0,90900.0,0.10933923]
[1731846666588,0.055002,90901.0,90900.0,0.10941882]
[1731846668284,0.055002,90901.0,90900.0,0.36118451]
[1731846668490,0.055002,90901.0,90900.0,0.1677587]
[1731846668689,0.055002,90901.0,90900.0,0.43002485]
[1731846669182,0.055002,90901.0,90900.0,0.43731673]
[1731846669785,0.055,90904.0,90903.0,0.054999]
[1731846669987,0.00012539,90906.0,90905.0,0.054999]
[1731846670181,0.00012539,90906.0,90905.0,0.33417018]
[1731846670381,0.05512439,90906.0,90905.0,0.3375075]
[1731846671088,0.05512439,90906.0,90905.0,0.33417018]
[1731846671288,0.00012539,90906.0,90905.0,0.33417018]
[1731846672387,0.00012539,90906.0,90905.0,0.0717097]
[1731846673985,0.00012539,90906.0,90905.0,0.07192141]
[1731846675991,0.00012539,90906.0,90905.0,0.07526084]
[1731846676288,0.00012539,90906.0,90905.0,0.07192141]
[1731846677396,0.00012539,90906.0,90905.0,0.07193043]
[1731846678090,0.00012539,90906.0,90905.0,0.40024874]
[1731846678286,0.00012539,90906.0,90905.0,0.07193043]
[1731846678486,0.00012539,90906.0,90905.0,0.07526928]
[1731846678681,0.00012539,90906.0,90905.0,0.07526925]
[1731846679099,0.00012539,90906.0,90905.0,0.07193043]
[1731846680790,0.00012539,90906.0,90905.0,0.07192068]
[1731846680998,0.00012539,90906.0,90905.0,0.07525897]
[1731846680999,0.05512439,90906.0,90905.0,0.07525897]
[1731846681190,0.05512439,90906.0,90905.0,0.07192068]
[1731846681391,0.05512439,90906.0,90905.0,0.01692168]
[1731846681988,0.05512439,90906.0,90905.0,0.00956265]
[1731846682594,0.05512439,90906.0,90905.0,0.01688795]
[1731846682792,0.11125793,90906.0,90905.0,0.01688795]
[1731846684195,0.055002,90901.0,90900.0,0.1]
[1731846684405,0.055002,90901.0,90900.0,0.306497]
[1731846684607,0.055002,90901.0,90900.0,0.3138293]
[1731846684792,0.055002,90901.0,90900.0,0.1168602]
[1731846685909,0.055002,90901.0,90900.0,0.3138293]
[1731846686102,0.055002,90901.0,90900.0,0.1168602]
[1731846686297,0.055002,90901.0,90900.0,0.1095279]
[1731846688016,0.1649634,90906.0,90904.0,0.055]
[1731846688311,0.00012539,90906.0,90905.0,0.07178451]
[1731846688699,0.00012539,90906.0,90905.0,1.57178451]
[1731846688897,0.00012539,90906.0,90905.0,1.571686]
[1731846690212,0.00012539,90906.0,90905.0,1.56442901]
[1731846690811,0.00012539,90906.0,90905.0,1.554999]
[1731846691006,0.00012539,90906.0,90905.0,1.56439509]
[1731846692504,0.00012539,90906.0,90905.0,0.06439509]
[1731846692505,0.05512439,90906.0,90905.0,0.06439509]
[1731846694214,0.05512439,90906.0,90905.0,0.0643585]
[1731846695514,0.05512439,90906.0,90905.0,0.0093595]
[1731846696410,0.00012539,90906.0,90904.0,0.26269469]
[1731846696615,0.00012539,90906.0,90905.0,0.00936765]
[1731846696616,0.05512439,90906.0,90905.0,0.00936765]
[1731846697012,0.054999,90905.0,90904.0,0.26269469]
[1731846697211,0.054999,90905.0,90904.0,0.2720634]
[1731846697505,0.054999,90905.0,90904.0,0.00936871]
[1731846698320,0.054999,90905.0,90904.0,0.01669086]
[1731846699506,0.18683649,90905.0,90904.0,0.01669086]
[1731846701020,0.18683649,90905.0,90902.0,0.19716434]
[1731846701021,0.055,90903.0,90902.0,0.19716434]
[1731846701220,0.055,90903.0,90902.0,0.2066564]
[1731846701420,0.055,90903.0,90902.0,0.00949206]
[1731846702326,0.055,90903.0,90902.0,0.2066564]
[1731846703018,0.055,90903.0,90902.0,0.00949206]
[1731846703623,0.055,90903.0,90902.0,0.20653218]
[1731846704126,0.055,90903.0,90902.0,0.00949206]
[1731846704922,0.0853,90903.0,90902.0,0.00949206]
[1731846707821,0.4461,90903.0,90902.0,0.00949206]
[1731846708026,0.61093801,90903.0,90902.0,0.00949206]
[1731846708924,0.4461,90903.0,90902.0,0.00949206]
[1731846709623,0.6109125,90903.0,90902.0,0.00949206]
[1731846710823,0.2501125,90903.0,90902.0,0.00949206]
[1731846711025,0.6109125,90903.0,90902.0,0.00949206]
[1731846711819,0.2501125,90903.0,90902.0,0.00949206]
[1731846712023,0.6109125,90903.0,90902.0,0.00949206]
[1731846713332,0.49961293,90903.0,90902.0,0.00949206]
[1731846713531,0.4461,90903.0,90902.0,0.00949206]
[1731846713732,0.49961293,90903.0,90902.0,0.00949206]
[1731846714325,0.4461,90903.0,90902.0,0.00949206]
[1731846715125,0.61091437,90903.0,90902.0,0.00949206]
[1731846716138,0.4461,90903.0,90902.0,0.00949206]
[1731846717541,0.3911,90903.0,90902.0,0.00928837]
[1731846717835,0.57794783,90903.0,90902.0,0.00928837]
[1731846718028,0.57794783,90903.0,90902.0,0.20621299]
[1731846718427,0.21714783,90903.0,90902.0,0.00928837]
[1731846718631,0.57794783,90903.0,90902.0,0.00928837]
[1731846718936,0.57794783,90903.0,90902.0,0.20622019]
[1731846719137,0.57794783,90903.0,90902.0,0.20621311]
[1731846719434,0.4461,90903.0,90902.0,0.20623398]
[1731846720027,0.57796028,90903.0,90902.0,0.00928129]
[1731846720338,0.4461,90903.0,90902.0,0.20624948]
[1731846720638,0.4461,90903.0,90902.0,0.00928129]
[1731846720836,0.055002,90901.0,90900.0,0.1]
[1731846721032,0.415802,90901.0,90900.0,0.10924878]
[1731846722338,0.54767409,90901.0,90900.0,0.10924878]
[1731846722536,0.415802,90901.0,90900.0,0.10924878]
[1731846723335,0.46931494,90901.0,90900.0,0.1092364]
[1731846727438,0.46931494,90901.0,90900.0,0.10355178]
[1731846728243,0.46931494,90901.0,90900.0,0.10924276]
[1731846729139,0.46931816,90901.0,90900.0,0.10924276]
[1731846730039,0.46931816,90901.0,90900.0,0.10927461]
[1731846730636,0.46931816,90901.0,90900.0,0.10927947]
[1731846731132,0.58082475,90901.0,90900.0,0.10927947]
[1731846732745,0.415802,90901.0,90900.0,0.10927947]
[1731846733444,0.415802,90901.0,90900.0,0.10928883]
[1731846733632,0.415802,90901.0,90900.0,0.30627742]
[1731846734943,0.13200272,90904.0,90900.0,0.10928883]
[1731846735151,0.00012539,90906.0,90905.0,0.054999]
[1731846735330,0.00012539,90906.0,90905.0,0.06428783]
[1731846736236,0.36220001,90912.0,90905.0,0.00928883]
[1731846736437,0.3608,90912.0,90911.0,0.054996]
[1731846736637,0.3608,90912.0,90911.0,0.06428483]
[1731846736842,0.3608,90912.0,90911.0,0.09458483]
[1731846737148,0.415795,90912.0,90911.0,0.085296]
[1731846737337,0.415795,90912.0,90911.0,0.09455235]
[1731846738039,0.00010712,90913.0,90911.0,0.09455235]
[1731846738244,0.00010712,90913.0,90912.0,0.06755925]
[1731846738438,0.054988,90923.0,90922.0,0.054988]
[1731846738635,0.054988,90923.0,90922.0,0.06424435]
[1731846738839,0.054988,90923.0,90922.0,0.2608241]
[1731846739039,0.054988,90923.0,90922.0,0.06424435]
[1731846739240,0.05484864,90924.0,90923.0,0.054988]
[1731846739436,0.05506973,90924.0,90923.0,0.06424435]
[1731846740760,0.05506973,90924.0,90923.0,0.00925635]
[1731846743145,0.05506973,90924.0,90923.0,0.06424435]
[1731846743346,0.05506973,90924.0,90923.0,0.06421637]
[1731846743549,0.05506973,90924.0,90923.0,0.0642149]
[1731846745547,0.05506973,90924.0,90923.0,0.05853669]
[1731846746851,0.05506973,90924.0,90923.0,0.05854894]
[1731846747354,0.05506973,90924.0,90923.0,0.05854871]
[1731846748348,0.05506973,90924.0,90923.0,0.00356071]
[1731846748649,0.05506973,90924.0,90911.0,0.0303]
[1731846748851,0.054995,90912.0,90911.0,0.0303]
[1731846749058,0.054995,90912.0,90911.0,0.03946201]
[1731846749247,0.054995,90912.0,90911.0,0.03382317]
[1731846749757,0.054995,90912.0,90911.0,0.0091363]
[1731846750648,0.054995,90912.0,90911.0,0.00352317]
[1731846752366,0.054995,90912.0,90900.0,0.1]
[1731846752367,0.055002,90901.0,90900.0,0.1]
[1731846752557,0.055002,90901.0,90900.0,0.10907872]
[1731846755653,0.055002,90901.0,90900.0,0.10349114]
[1731846756054,0.140922,90901.0,90900.0,0.10349114]
[1731846756355,0.055002,90901.0,90900.0,0.10349114]
[1731846756861,0.055002,90901.0,90900.0,0.10913369]
[1731846757064,0.055002,90901.0,90900.0,0.10923603]
[1731846757250,0.055002,90901.0,90900.0,0.11136932]
[1731846757557,0.055002,90901.0,90900.0,0.10923688]
[1731846758661,0.055002,90901.0,90900.0,0.10919717]
[1731846758860,0.055002,90901.0,90900.0,0.10920816]
[1731846760258,0.13183062,90912.0,90900.0,1.60920816]
[1731846760561,0.08592,90912.0,90904.0,0.054999]
[1731846760762,0.16243062,90917.0,90905.0,0.00920816]
[1731846760951,0.054998,90908.0,90906.0,0.00920816]
[1731846761153,0.054998,90908.0,90907.0,0.00920816]
[1731846761355,0.054995,90913.0,90912.0,0.054995]
[1731846761559,0.054995,90913.0,90912.0,0.06420316]
[1731846761960,0.054995,90913.0,90912.0,1.56420316]
[1731846762965,0.054995,90913.0,90912.0,1.50920816]
[1731846764667,0.054995,90913.0,90912.0,0.00920816]
[1731846764869,0.054995,90913.0,90912.0,0.00354092]
[1731846766758,0.054995,90913.0,90912.0,0.00352094]
[1731846766759,0.054994,90913.0,90912.0,0.00352094]
[1731846767869,0.21852462,90913.0,90912.0,0.00352094]
[1731846768066,0.086694,90913.0,90912.0,0.00352094]
[1731846769169,0.055,90903.0,90902.0,1.5]
[1731846769467,0.055,90903.0,90902.0,1.50912125]
[1731846770164,0.054998,90908.0,90907.0,0.054997]
[1731846770370,0.054998,90908.0,90907.0,0.06061075]
[1731846770555,0.054998,90908.0,90907.0,0.06411825]
[1731846771969,0.054995,90913.0,90912.0,0.054995]
[1731846772156,0.054995,90913.0,90912.0,0.06411625]
[1731846772468,0.0858,90918.0,90912.0,0.00912125]
[1731846772655,0.0858,90918.0,90906.0,0.05843978]
[1731846772656,0.140792,90918.0,90917.0,0.054992]
[1731846772859,0.140792,90918.0,90917.0,0.06411325]
[1731846773159,0.054992,90918.0,90917.0,0.00912125]
[1731846775466,0.18667759,90918.0,90917.0,0.00912125]
[1731846776367,0.054992,90918.0,90917.0,0.00912125]
[1731846777061,0.18678196,90918.0,90917.0,0.00912125]
[1731846777270,0.054992,90918.0,90917.0,0.00912125]
[1731846779065,0.415792,90918.0,90917.0,0.00912125]
[1731846780279,0.054998,90907.0,90906.0,1.75116213]
[1731846780464,0.054998,90907.0,90906.0,1.75680816]
[1731846780666,0.054998,90907.0,90906.0,0.0091737]
[1731846780867,0.054998,90907.0,90906.0,0.20554526]
[1731846781069,0.054998,90907.0,90906.0,0.0091737]
[1731846783676,0.054998,90907.0,90906.0,0.33680661]
[1731846783868,0.054998,90907.0,90906.0,0.39180561]
[1731846784173,0.054998,90907.0,90906.0,0.76131596]
[1731846784373,0.054995,90912.0,90911.0,0.054995]
[1731846784567,0.054995,90912.0,90911.0,0.0641687]
[1731846785279,0.415792,90918.0,90917.0,0.054992]
[1731846785480,0.415792,90918.0,90917.0,0.0641657]
[1731846785797,0.415792,90918.0,90917.0,0.054992]
[1731846785971,0.415792,90918.0,90917.0,0.06409571]
[1731846786282,0.415792,90918.0,90917.0,0.06409563]
[1731846786574,0.054992,90918.0,90917.0,0.32589541]
[1731846786775,8.173e-05,90924.0,90917.0,0.00910363]